bitfinex/quotes_BTCUSD_20230113
["timestamp","ask_amount","ask_price","bid_price","bid_amount"]
[1673636110744,1.449909,19332.0,19331.0,0.01575369]
[1673636110992,0.868277,19332.0,19331.0,0.59259521]
[1673636111234,0.868277,19332.0,19331.0,0.01575369]
[1673636113000,0.351,19332.0,19331.0,0.14027369]
[1673636114294,0.351,19332.0,19331.0,0.16880471]
[1673636116058,0.351,19332.0,19331.0,0.39849792]
[1673636116303,1.38578662,19332.0,19331.0,0.16880471]
[1673636117034,2.74469562,19332.0,19331.0,0.01575369]
[1673636117286,3.07089268,19332.0,19331.0,0.01575369]
[1673636117987,3.58816968,19332.0,19331.0,0.01575369]
[1673636118233,3.26197262,19332.0,19331.0,0.01575369]
[1673636120020,3.26197262,19332.0,19331.0,0.16880471]
[1673636120848,3.26197262,19332.0,19331.0,0.16380471]
[1673636121600,0.351,19332.0,19331.0,0.16390483]
[1673636121833,0.351,19332.0,19331.0,1.40938995]
[1673636122086,0.351,19332.0,19331.0,1.61530095]
[1673636122335,0.351,19332.0,19331.0,1.41138195]
[1673636122594,0.351,19332.0,19331.0,2.02868495]
[1673636122881,0.351,19332.0,19331.0,1.92868495]
[1673636123356,0.351,19332.0,19331.0,1.62046733]
[1673636123589,0.351,19332.0,19331.0,1.42390489]
[1673636124340,0.351,19332.0,19331.0,1.72070795]
[1673636124842,0.351,19332.0,19331.0,1.82070795]
[1673636125098,0.351,19332.0,19331.0,1.51162539]
[1673636125345,0.351,19332.0,19331.0,0.90661033]
[1673636125589,0.351,19332.0,19331.0,1.00661033]
[1673636125803,0.351,19332.0,19331.0,0.69838989]
[1673636126080,0.351,19332.0,19331.0,0.2156401]
[1673636126574,0.351,19332.0,19331.0,1.35219493]
[1673636127582,0.351,19332.0,19331.0,1.25219493]
[1673636128079,0.351,19332.0,19331.0,1.9164799]
[1673636128343,0.301733,19332.0,19331.0,2.4337829]
[1673636129318,0.301733,19332.0,19331.0,1.2492769]
[1673636129535,0.301733,19332.0,19331.0,0.451459]
[1673636130280,1.33648292,19332.0,19331.0,0.0657401]
[1673636130519,1.33648292,19332.0,19331.0,0.1657401]
[1673636130768,0.301733,19332.0,19331.0,0.0657401]
[1673636131017,0.301733,19332.0,19331.0,0.06602096]
[1673636131265,0.301733,19332.0,19331.0,0.87970593]
[1673636131517,0.301733,19332.0,19331.0,2.47050281]
[1673636131786,0.301733,19332.0,19331.0,2.98780581]
[1673636132777,0.26,19332.0,19331.0,2.97980581]
[1673636133059,1.50905622,19332.0,19331.0,0.1947401]
[1673636133301,1.29475128,19332.0,19331.0,0.69703221]
[1673636133549,1.29875128,19332.0,19331.0,0.58044756]
[1673636133792,1.29875128,19332.0,19331.0,0.44344756]
[1673636133793,1.29475128,19332.0,19331.0,0.44344756]
[1673636134039,1.29875128,19332.0,19331.0,0.29502096]
[1673636134288,1.29875128,19332.0,19331.0,1.14474047]
[1673636134289,1.2947539,19332.0,19331.0,1.14474047]
[1673636134534,1.2987539,19332.0,19331.0,1.38174047]
[1673636134797,1.2987539,19332.0,19331.0,1.28174047]
[1673636134798,0.264,19332.0,19331.0,1.28174047]
[1673636135050,1.29875106,19332.0,19331.0,1.28320955]
[1673636135263,0.264,19332.0,19331.0,1.28320955]
[1673636135549,0.264,19332.0,19331.0,2.04749452]
[1673636135795,0.264,19332.0,19331.0,2.56479752]
[1673636136479,0.264,19332.0,19331.0,2.46479752]
[1673636137496,0.264,19332.0,19331.0,2.25888652]
[1673636137710,0.264,19332.0,19331.0,2.46479752]
[1673636137956,1.29874003,19332.0,19331.0,0.1947401]
[1673636138196,1.29874003,19332.0,19331.0,0.58054217]
[1673636139388,1.29874003,19332.0,19331.0,0.1947401]
[1673636140634,1.29874003,19332.0,19331.0,0.58051965]
[1673636142497,1.81601703,19332.0,19331.0,0.58051965]
[1673636143313,1.81601703,19332.0,19331.0,0.83418649]
[1673636143570,1.81601703,19332.0,19331.0,0.58051965]
[1673636144884,2.77692777,19332.0,19331.0,0.73501488]
[1673636145111,3.70825483,19332.0,19331.0,0.29414116]
[1673636145363,3.70825483,19332.0,19331.0,0.13975369]
[1673636145616,3.70825483,19332.0,19331.0,0.29414116]
[1673636145842,3.40825483,19332.0,19331.0,0.29414116]
[1673636146301,3.40425483,19332.0,19331.0,0.15714116]
[1673636146544,3.46225483,19332.0,19331.0,0.16714116]
[1673636147740,3.76225483,19332.0,19331.0,0.01275369]
[1673636147985,3.76225483,19332.0,19331.0,0.16714116]
[1673636148261,3.76225483,19332.0,19331.0,0.01275369]
[1673636149476,3.76025483,19332.0,19331.0,0.01275369]
[1673636149710,3.22692603,19332.0,19331.0,0.16714116]
[1673636150177,3.22692603,19332.0,19331.0,0.44792518]
[1673636150647,3.22692603,19332.0,19331.0,0.16714116]
[1673636151160,3.22692603,19332.0,19331.0,0.39869913]
[1673636151864,3.22692603,19332.0,19331.0,0.16714116]
[1673636152112,3.22692603,19332.0,19331.0,0.39869913]
[1673636152345,3.22692603,19332.0,19331.0,0.16714116]
[1673636152569,3.22692603,19332.0,19331.0,0.01275369]
[1673636152807,3.22692603,19332.0,19331.0,0.16714116]
[1673636153282,3.52692603,19332.0,19331.0,0.01275369]
[1673636154464,3.22692603,19332.0,19331.0,0.01275369]
[1673636154943,3.52692603,19332.0,19331.0,0.01275369]
[1673636155204,3.22692603,19332.0,19331.0,0.16714116]
[1673636155450,3.22692603,19332.0,19331.0,0.01275369]
[1673636155683,3.22692603,19332.0,19331.0,0.16714116]
[1673636156648,2.70964903,19332.0,19331.0,0.1678885]
[1673636156891,1.35074003,19332.0,19331.0,0.32221784]
[1673636157159,1.35074003,19332.0,19331.0,0.74597732]
[1673636157392,1.35074003,19332.0,19331.0,0.74522998]
[1673636157634,1.35074003,19332.0,19331.0,0.43651317]
[1673636157857,1.35074003,19332.0,19331.0,0.74517668]
[1673636158334,1.35074003,19332.0,19331.0,0.43651317]
[1673636159055,1.35074003,19332.0,19331.0,0.74518843]
[1673636160261,1.86801703,19332.0,19331.0,0.43664007]
[1673636160737,1.86801703,19332.0,19331.0,0.16711893]
[1673636161218,2.38529403,19332.0,19331.0,0.4366495]
[1673636161455,2.38529403,19332.0,19331.0,0.43664941]
[1673636161685,2.38469903,19332.0,19331.0,0.43664911]
[1673636161900,2.90197603,19332.0,19331.0,0.16711893]
[1673636162127,3.22633103,19332.0,19331.0,0.01275369]
[1673636164210,3.22633103,19332.0,19331.0,0.16711893]
[1673636164487,2.90197603,19332.0,19331.0,0.16711893]
[1673636165733,2.90197603,19332.0,19331.0,0.16695596]
[1673636165982,2.90197603,19332.0,19331.0,0.16769507]
[1673636166225,2.38469903,19332.0,19331.0,0.39923628]
[1673636166470,2.38469903,19332.0,19331.0,0.43648279]
[1673636166716,2.38469903,19332.0,19331.0,0.59079281]
[1673636166975,2.38469903,19332.0,19331.0,0.59152447]
[1673636167215,2.38469903,19332.0,19331.0,0.59075629]
[1673636168265,1.86742203,19332.0,19331.0,0.59075629]
[1673636168769,1.86742203,19332.0,19331.0,0.84503115]
[1673636169014,1.86742203,19332.0,19331.0,0.74503115]
[1673636169775,1.86742203,19332.0,19331.0,1.39875292]
[1673636170020,1.86742203,19332.0,19331.0,1.54538866]
[1673636170021,1.35014503,19332.0,19331.0,1.54538866]
[1673636170534,0.315405,19332.0,19331.0,1.67691211]
[1673636170776,0.315405,19332.0,19331.0,1.61601211]
[1673636171030,0.315405,19332.0,19331.0,2.03331511]
[1673636171285,1.35017525,19332.0,19331.0,1.90179757]
[1673636171564,1.35017525,19332.0,19331.0,2.00514511]
[1673636171823,1.35017525,19332.0,19331.0,1.69649909]
[1673636173342,1.35017525,19332.0,19331.0,2.00513809]
[1673636174594,1.35017525,19332.0,19331.0,1.35139679]
[1673636174844,1.35017525,19332.0,19331.0,0.83409379]
[1673636175089,1.35017525,19332.0,19331.0,0.74498127]
[1673636175335,1.35017525,19332.0,19331.0,0.59075976]
[1673636175336,3.36137877,19332.0,19331.0,0.59075976]
[1673636175580,3.36137877,19332.0,19331.0,0.01259072]
[1673636175582,3.66137877,19332.0,19331.0,0.01259072]
[1673636176360,4.14999705,19332.0,19331.0,0.01259072]
[1673636176615,3.66137877,19332.0,19331.0,0.01259072]
[1673636179853,3.75057877,19332.0,19331.0,0.01259072]
[1673636182085,3.75057877,19332.0,19331.0,0.01359072]
[1673636186287,3.75051877,19332.0,19331.0,0.01359072]
[1673636187528,3.61550125,19332.0,19331.0,0.01359072]
[1673636188787,4.56616709,19332.0,19331.0,0.01359072]
[1673636189038,0.1,19331.0,19327.0,0.00534935]
[1673636189301,0.1,19329.0,19327.0,0.00553935]
[1673636189547,3.56388125,19328.0,19327.0,0.00553935]
[1673636189798,4.44119953,19328.0,19327.0,0.00553935]
[1673636190043,6.34457177,19328.0,19327.0,0.00553935]
[1673636190297,5.1169123,19328.0,19327.0,0.00553935]
[1673636190562,5.1169123,19328.0,19325.0,0.00944243]
[1673636190563,5.3492116,19328.0,19325.0,0.00944243]
[1673636190809,0.0891,19326.0,19325.0,0.00944243]
[1673636191058,4.10419153,19326.0,19325.0,0.00944243]
[1673636191325,6.13840924,19326.0,19322.0,0.0062076]
[1673636191585,2.8020369,19325.0,19322.0,0.0062076]
[1673636191827,0.1783,19323.0,19322.0,0.0062076]
[1673636192082,1.44581725,19323.0,19322.0,0.0062076]
[1673636192359,2.09175125,19323.0,19322.0,0.0062076]
[1673636192599,2.09175125,19323.0,19322.0,0.0012076]
[1673636192600,2.39175125,19323.0,19322.0,0.0012076]
[1673636192852,2.48085125,19323.0,19322.0,0.0012076]
[1673636193072,2.89275458,19323.0,19322.0,0.0012076]
[1673636193364,3.02775458,19323.0,19322.0,0.0012076]
[1673636193852,3.51637286,19323.0,19322.0,0.0012076]
[1673636194104,3.56865293,19323.0,19322.0,0.0012076]
[1673636196529,3.74675293,19323.0,19322.0,7.6e-06]
[1673636196801,3.75525293,19323.0,19322.0,7.6e-06]
[1673636198332,4.28148563,19323.0,19322.0,7.6e-06]
[1673636198579,4.94106563,19323.0,19322.0,7.6e-06]
[1673636198826,5.92622036,19323.0,19322.0,7.6e-06]
[1673636199071,5.92622036,19323.0,19316.0,0.00728694]
[1673636199072,0.9562,19322.0,19317.0,0.00019]
[1673636199317,0.1784,19318.0,19317.0,0.00019]
[1673636199566,2.48125594,19318.0,19317.0,0.00019]
[1673636199820,2.92203601,19318.0,19317.0,0.00019]
[1673636200067,0.1,19317.0,19316.0,0.00247694]
[1673636200332,2.51522928,19317.0,19316.0,0.00247694]
[1673636200582,2.47900935,19317.0,19316.0,0.00247694]
[1673636201441,3.01374205,19317.0,19316.0,9.4e-07]
[1673636201643,1.98569107,19317.0,19316.0,9.4e-07]
[1673636201861,1.459711,19317.0,19316.0,9.4e-07]
[1673636202106,1.595711,19317.0,19316.0,9.4e-07]
[1673636202362,1.459711,19317.0,19316.0,9.4e-07]
[1673636202604,1.594711,19317.0,19316.0,9.4e-07]
[1673636202851,1.459711,19317.0,19316.0,9.4e-07]
[1673636203127,1.8976323,19317.0,19316.0,9.4e-07]
[1673636203376,1.494711,19317.0,19316.0,9.4e-07]
[1673636203893,1.170356,19317.0,19316.0,9.4e-07]
[1673636204170,1.70501594,19317.0,19316.0,9.4e-07]
[1673636204390,1.494711,19317.0,19316.0,9.4e-07]
[1673636204633,2.3010146,19317.0,19316.0,9.4e-07]
[1673636204890,2.6010146,19317.0,19316.0,9.4e-07]
[1673636206133,2.6010146,19317.0,19312.0,0.0892]
[1673636206134,0.1,19316.0,19312.0,0.08808398]
[1673636206397,1.78546294,19315.0,19312.0,0.08808398]
[1673636206639,0.83465994,19314.0,19311.0,0.3654]
[1673636206883,1.78560694,19313.0,19310.0,0.01288386]
[1673636207132,1.86365994,19313.0,19310.0,0.01288386]
[1673636207379,1.76365994,19313.0,19310.0,0.01288386]
[1673636208148,1.653355,19313.0,19310.0,0.01288386]
[1673636208392,1.553355,19313.0,19310.0,0.01288386]
[1673636208641,1.94899544,19313.0,19310.0,0.01288386]
[1673636208897,1.7386905,19313.0,19310.0,0.01288386]
[1673636209405,1.8146905,19313.0,19310.0,0.01288386]
[1673636210468,1.8148905,19313.0,19310.0,0.01288386]
[1673636210716,1.629555,19313.0,19310.0,0.01288386]
[1673636210967,1.889555,19313.0,19310.0,0.01288386]
[1673636211497,0.3,19312.0,19310.0,0.01288386]
[1673636211706,1.360033,19311.0,19310.0,0.01288386]
[1673636211958,0.69662427,19311.0,19310.0,0.01288386]
[1673636212470,2.17056934,19311.0,19310.0,0.01288386]
[1673636212744,2.0494644,19311.0,19310.0,0.01288386]
[1673636212979,1.94001827,19311.0,19310.0,0.01288386]
[1673636213240,1.85081827,19311.0,19310.0,0.01288386]
[1673636213482,1.02097927,19311.0,19310.0,0.01288386]
[1673636213734,0.69662427,19311.0,19310.0,0.01288386]
[1673636214476,0.83262427,19311.0,19310.0,0.01288386]
[1673636214729,0.69662427,19311.0,19310.0,0.01288386]
[1673636214975,0.70162427,19311.0,19310.0,0.01288386]
[1673636216256,0.8335699,19311.0,19310.0,0.01288386]
[1673636216742,1.00162427,19311.0,19310.0,0.01288386]
[1673636217014,0.70162427,19311.0,19310.0,0.01288386]
[1673636217251,1.00162427,19311.0,19310.0,0.01288386]
[1673636217498,1.42597927,19311.0,19310.0,0.01288386]
[1673636218245,1.32597927,19311.0,19310.0,0.01288386]
[1673636218541,1.02597927,19311.0,19310.0,0.01288386]
[1673636218785,1.6348704,19311.0,19310.0,0.01288386]
[1673636220036,1.7240704,19311.0,19310.0,0.01288386]
[1673636221508,2.21363376,19311.0,19310.0,0.01288386]
[1673636221761,2.21363376,19311.0,19304.0,0.01288386]
[1673636221762,0.01240308,19308.0,19304.0,0.01288386]
[1673636222013,0.0892,19306.0,19304.0,0.01288386]
[1673636222265,0.324355,19305.0,19304.0,0.01288386]
[1673636222511,2.08865994,19305.0,19304.0,0.01288386]
[1673636222789,2.38865994,19305.0,19304.0,0.01288386]
[1673636223049,2.178355,19305.0,19304.0,0.01288386]
[1673636223294,2.8022877,19305.0,19304.0,0.01288386]
[1673636223550,2.178355,19305.0,19304.0,0.01288386]
[1673636224116,1.878355,19305.0,19304.0,0.01288386]
[1673636224325,1.554,19305.0,19304.0,0.01288386]
[1673636224568,1.878355,19305.0,19304.0,0.01288386]
[1673636224819,2.314355,19305.0,19304.0,0.01288386]
[1673636225101,2.26879621,19305.0,19304.0,0.01288386]
[1673636225349,2.40279621,19305.0,19304.0,0.01288386]
[1673636226585,2.178355,19305.0,19304.0,0.01288386]
[1673636226826,2.312355,19305.0,19304.0,0.01288386]
[1673636227310,2.012355,19305.0,19304.0,0.01288386]
[1673636227799,1.17,19305.0,19304.0,0.75993066]
[1673636228057,0.652,19305.0,19304.0,0.75993066]
[1673636228305,0.652,19305.0,19304.0,0.92929466]
[1673636228306,0.134,19305.0,19304.0,0.92929466]
[1673636228847,0.134,19305.0,19304.0,0.82586298]
[1673636229100,0.134,19305.0,19304.0,2.52552358]
[1673636229101,0.0918517,19305.0,19304.0,2.52552358]
[1673636229348,0.20678,19315.0,19305.0,0.1]
[1673636229650,0.20678,19316.0,19308.0,1.03584]
[1673636229892,0.1,19315.0,19309.0,0.295413]
[1673636230133,0.1,19315.0,19309.0,0.0892]
[1673636230134,0.617735,19315.0,19309.0,0.0892]
[1673636230379,0.82803994,19315.0,19309.0,0.0892]
[1673636230625,0.82725658,19315.0,19309.0,0.0892]
[1673636230869,0.517935,19315.0,19312.0,0.0886]
[1673636231117,0.517935,19315.0,19314.0,0.0886]
[1673636231118,0.0002,19315.0,19314.0,0.0886]
[1673636231401,0.0102,19315.0,19314.0,0.0886]
[1673636232427,0.0002,19315.0,19314.0,0.0886]
[1673636232670,0.0002,19315.0,19314.0,0.2106]
[1673636233166,0.5255291,19317.0,19314.0,0.2106]
[1673636233414,0.3,19316.0,19314.0,0.2106]
[1673636233656,0.3,19316.0,19314.0,0.122]
[1673636233657,0.842087,19315.0,19314.0,0.122]
[1673636233913,2.5379929,19315.0,19314.0,0.122]
[1673636234403,2.5379929,19315.0,19311.0,0.0886]
[1673636234652,0.321947,19314.0,19311.0,0.0886]
[1673636234905,0.517785,19313.0,19309.0,0.68107535]
[1673636235151,0.21030494,19312.0,19309.0,0.68107535]
[1673636235897,1.035572,19313.0,19310.0,9.623e-05]
[1673636236143,1.035572,19313.0,19310.0,0.80702963]
[1673636236144,0.517787,19313.0,19310.0,0.80702963]
[1673636236391,0.004,19312.0,19310.0,0.80702963]
[1673636236895,0.004,19312.0,19311.0,0.85283097]
[1673636237145,0.777751,19315.0,19311.0,0.85283097]
[1673636237397,0.777751,19315.0,19312.0,0.295372]
[1673636237398,0.004,19313.0,19312.0,0.295372]
[1673636237643,0.777751,19315.0,19312.0,0.0892]
[1673636237895,0.26,19315.0,19313.0,0.0892]
[1673636238138,0.26,19315.0,19314.0,0.2783]
[1673636238389,0.26,19315.0,19314.0,0.484448]
[1673636238887,0.26,19315.0,19314.0,0.384448]
[1673636239398,0.263,19315.0,19314.0,0.2433]
[1673636239647,0.263,19315.0,19314.0,0.24504158]
[1673636239894,0.263,19315.0,19314.0,1.57794839]
[1673636240661,0.263,19315.0,19314.0,2.19570739]
[1673636240914,0.263,19315.0,19314.0,2.57786484]
[1673636241173,0.18298078,19315.0,19314.0,2.58662776]
[1673636241416,0.18298078,19315.0,19314.0,2.74047712]
[1673636241660,0.18298078,19315.0,19314.0,2.5093087]
[1673636241906,0.17998078,19315.0,19314.0,2.74434751]
[1673636242155,0.17998078,19315.0,19314.0,2.32838856]
[1673636242395,0.17998078,19315.0,19314.0,2.34374751]
[1673636242643,0.17998078,19315.0,19314.0,2.48274751]
[1673636243140,0.17998078,19315.0,19314.0,1.90356453]
[1673636243391,0.17998078,19315.0,19314.0,2.6542005]
[1673636243392,7.8e-07,19315.0,19314.0,2.6542005]
[1673636243635,0.0080391,19317.0,19316.0,0.1]
[1673636243889,0.0078391,19317.0,19316.0,1.55774425]
[1673636244128,0.0078391,19317.0,19316.0,1.76386225]
[1673636244383,0.0078391,19317.0,19316.0,1.52034738]
[1673636244624,0.0078391,19317.0,19316.0,1.00264238]
[1673636244885,0.0078391,19317.0,19316.0,1.72211374]
[1673636245130,0.0078391,19317.0,19316.0,1.58311374]
[1673636245377,0.0078391,19317.0,19316.0,1.72211374]
[1673636245618,0.0078391,19317.0,19316.0,1.58311374]
[1673636245864,0.0078391,19317.0,19316.0,1.72149436]
[1673636246858,0.0078391,19317.0,19316.0,1.72168398]
[1673636248061,0.0078391,19317.0,19316.0,1.74801762]
[1673636248589,0.0078391,19317.0,19316.0,1.90233249]
[1673636249090,0.0078391,19317.0,19316.0,1.74801762]
[1673636249920,0.0078391,19317.0,19316.0,2.33212805]
[1673636250181,0.0078391,19317.0,19316.0,2.19312805]
[1673636251211,0.0055883,19317.0,19316.0,2.19312805]
[1673636251462,0.0055883,19317.0,19316.0,2.33212805]
[1673636251714,0.0055883,19317.0,19316.0,1.60901762]
[1673636252000,0.0055883,19317.0,19316.0,2.28848231]
[1673636253239,0.0055883,19317.0,19316.0,1.15288269]
[1673636253484,0.0055883,19317.0,19316.0,0.434218]
[1673636253727,0.0055883,19317.0,19316.0,0.22835778]
[1673636253979,0.0055883,19317.0,19316.0,0.2281]
[1673636254719,0.0055883,19317.0,19316.0,0.22835778]
[1673636254966,0.0055883,19317.0,19316.0,0.2281]
[1673636255238,0.1308083,19317.0,19316.0,0.2281]
[1673636255480,1.1661643,19317.0,19316.0,0.139]
[1673636255730,1.5905193,19317.0,19316.0,0.139]
[1673636255971,2.2397193,19317.0,19316.0,0.139]
[1673636256948,2.2397193,19317.0,19315.0,0.08382816]
[1673636257194,0.147167,19316.0,19315.0,0.08382816]
[1673636257445,0.764872,19316.0,19315.0,0.08382816]
[1673636257700,1.282577,19316.0,19315.0,0.08382816]
[1673636258196,1.282577,19316.0,19315.0,0.08882816]
[1673636258436,1.292577,19316.0,19315.0,0.08882816]
[1673636259181,1.592577,19316.0,19315.0,0.08882816]
[1673636259920,1.84016133,19316.0,19315.0,0.08882816]
[1673636261670,2.58843163,19316.0,19315.0,0.08882816]
[1673636262196,3.62442026,19316.0,19315.0,0.08882816]
[1673636264990,4.15915296,19316.0,19315.0,0.08882816]
[1673636266155,4.67685796,19316.0,19315.0,0.08882816]
[1673636267889,3.11317063,19316.0,19315.0,0.08882816]
[1673636268625,2.81025063,19316.0,19315.0,0.08882816]
[1673636268870,2.72105063,19316.0,19315.0,0.08882816]
[1673636269591,2.62105063,19316.0,19315.0,0.08882816]
[1673636270361,1.06793563,19316.0,19315.0,0.0895837]
[1673636270610,0.01,19316.0,19315.0,0.08882816]
[1673636271372,2.0811991,19316.0,19315.0,0.08882816]
[1673636271651,2.72933284,19316.0,19315.0,0.08882816]
[1673636272193,2.4946541,19316.0,19315.0,0.08882816]
[1673636272401,2.7946541,19316.0,19315.0,0.08882816]
[1673636272650,2.7946541,19316.0,19315.0,0.08871061]
[1673636273934,2.7946541,19316.0,19315.0,0.03871061]
[1673636275112,2.8832541,19316.0,19315.0,0.03871061]
[1673636275596,3.4009591,19316.0,19315.0,0.03871061]
[1673636276099,3.81938414,19316.0,19315.0,0.03871061]
[1673636276590,3.4009591,19316.0,19315.0,0.03871061]
[1673636277609,3.4894591,19316.0,19315.0,0.03871061]
[1673636277832,3.9689273,19316.0,19315.0,0.03871061]
[1673636278578,3.9189273,19316.0,19315.0,0.03871061]
[1673636278818,3.91693496,19316.0,19315.0,0.03871061]
[1673636279877,3.43945896,19316.0,19315.0,0.03871061]
[1673636280811,3.86696199,19316.0,19315.0,0.03871061]
[1673636281309,4.39319469,19316.0,19315.0,0.03871061]
[1673636281553,4.44547476,19316.0,19315.0,0.03871061]
[1673636282263,2.96175896,19316.0,19315.0,0.03871061]
[1673636282763,2.95675896,19316.0,19315.0,0.03871061]
[1673636283504,3.04515896,19316.0,19315.0,0.03871061]
[1673636283753,3.34515896,19316.0,19315.0,0.03871061]
[1673636286714,3.04515896,19316.0,19315.0,0.03871061]
[1673636286959,2.86825896,19316.0,19315.0,0.03871061]
[1673636288470,3.16825896,19316.0,19315.0,0.03871061]
[1673636292702,3.16825896,19316.0,19315.0,0.005]
[1673636293940,3.56341399,19316.0,19315.0,0.005]
[1673636295139,3.718296,19316.0,19315.0,0.005]
[1673636295397,3.9505953,19316.0,19315.0,0.005]
[1673636295648,3.718296,19316.0,19315.0,0.005]
[1673636295919,3.9505953,19316.0,19315.0,0.005]
[1673636296158,6.22275559,19316.0,19315.0,0.00018544]
[1673636296413,6.22275559,19316.0,19315.0,4.4e-07]
[1673636296414,5.71278244,19316.0,19315.0,4.4e-07]
[1673636296631,5.71278244,19316.0,19314.0,0.001]
[1673636296632,0.1,19315.0,19314.0,0.001]
[1673636296904,4.88541508,19315.0,19314.0,0.001]
[1673636297153,5.11539515,19315.0,19314.0,0.001]
[1673636297394,5.34770244,19315.0,19314.0,0.001]
[1673636297638,5.64162785,19315.0,19314.0,0.001]
[1673636297889,5.65012785,19315.0,19314.0,0.001]
[1673636298356,5.8824598,19315.0,19314.0,0.001]
[1673636298563,5.9754598,19315.0,19314.0,0.009]
[1673636298814,6.71118438,19315.0,19314.0,0.001]
[1673636299079,0.1,19314.0,19309.0,0.01275282]
[1673636299354,0.0892,19311.0,19309.0,0.01275282]
[1673636299610,2.193411,19310.0,19307.0,0.29853999]
[1673636299858,0.83465994,19309.0,19307.0,0.43812905]
[1673636300150,0.83465994,19309.0,19308.0,0.15431487]
[1673636300151,0.59758914,19309.0,19308.0,0.15431487]
[1673636300394,1.7474252,19309.0,19308.0,0.15431487]
[1673636300890,2.2553182,19309.0,19308.0,0.15431487]
[1673636301177,2.2553182,19309.0,19307.0,0.18231487]
[1673636301434,0.021947,19308.0,19307.0,0.15431487]
[1673636301672,1.675707,19308.0,19307.0,0.15431487]
[1673636302128,1.675707,19308.0,19307.0,0.24431487]
[1673636302419,1.975707,19308.0,19306.0,0.15431487]
[1673636302665,1.76055259,19307.0,19306.0,0.15431487]
[1673636302914,3.31439059,19307.0,19306.0,0.15431487]
[1673636303413,3.70762165,19307.0,19304.0,0.16719873]
[1673636303662,3.70762165,19307.0,19304.0,0.01288386]
[1673636303663,1.36844953,19306.0,19304.0,0.01288386]
[1673636303908,2.178355,19305.0,19304.0,0.01288386]
[1673636304159,2.178355,19305.0,19304.0,0.30816113]
[1673636304160,2.91455259,19305.0,19304.0,0.30816113]
[1673636304405,2.91455259,19305.0,19304.0,0.16719873]
[1673636304660,3.21455259,19305.0,19304.0,0.16719873]
[1673636304913,3.21455259,19305.0,19304.0,0.01288386]
[1673636305162,3.58780715,19305.0,19304.0,0.04588386]
[1673636305891,3.59780715,19305.0,19304.0,0.09488386]
[1673636306138,3.22455259,19305.0,19304.0,0.09488386]
[1673636309146,2.188355,19305.0,19304.0,0.09488386]
[1673636309356,1.370355,19305.0,19304.0,0.71140329]
[1673636309635,0.528,19305.0,19304.0,0.71140329]
[1673636310379,0.01,19305.0,19304.0,1.04401816]
[1673636310640,0.01,19305.0,19304.0,1.30435963]
[1673636310880,0.01,19305.0,19304.0,1.30416044]
[1673636311136,0.01,19305.0,19304.0,1.09787644]
[1673636311385,0.01,19305.0,19304.0,1.44348417]
[1673636311633,0.01,19305.0,19304.0,1.13460121]
[1673636311883,0.00637018,19305.0,19304.0,1.95842359]
[1673636312139,0.00637018,19305.0,19304.0,0.82705619]
[1673636312426,0.00637018,19305.0,19304.0,0.2495097]
[1673636312666,0.52437018,19305.0,19304.0,0.09488386]
[1673636313935,0.52437018,19305.0,19304.0,0.2495097]
[1673636314438,0.00637018,19305.0,19304.0,0.88982407]
[1673636314686,0.00637018,19305.0,19304.0,1.72166954]
[1673636314929,0.00637018,19305.0,19304.0,1.48973078]
[1673636315181,0.00637018,19305.0,19304.0,1.72267002]
[1673636316164,0.00637018,19305.0,19304.0,1.49073078]
[1673636316883,0.00637018,19305.0,19304.0,1.87601148]
[1673636317369,0.00637018,19305.0,19304.0,1.87608478]
[1673636317619,0.00637018,19305.0,19304.0,1.39073078]
[1673636318113,0.00637018,19305.0,19304.0,1.49073078]
[1673636318359,0.00637018,19305.0,19304.0,1.49080408]
[1673636319095,0.00637018,19305.0,19304.0,1.39080408]
[1673636319363,0.00571317,19305.0,19304.0,1.77608478]
[1673636319599,0.00571317,19305.0,19304.0,1.18452008]
[1673636320351,0.00571317,19305.0,19304.0,1.4164144]
[1673636320602,0.00571317,19305.0,19304.0,1.12281207]
[1673636320603,0.52371317,19305.0,19304.0,1.12281207]
[1673636320855,0.52371317,19305.0,19304.0,0.25053008]
[1673636321350,1.04171317,19305.0,19304.0,0.25053008]
[1673636321632,1.04171317,19305.0,19304.0,0.09588386]
[1673636321852,2.18406817,19305.0,19304.0,0.09588386]
[1673636322588,1.85961102,19305.0,19304.0,0.09588386]
[1673636322836,3.22034764,19305.0,19304.0,0.09588386]
[1673636325023,3.78481236,19305.0,19304.0,0.09588386]
[1673636326031,3.77920134,19305.0,19304.0,0.01388386]
[1673636326276,3.88220134,19305.0,19304.0,0.02188386]
[1673636326527,4.988533,19305.0,19304.0,0.01388386]
[1673636326775,5.54049233,19305.0,19304.0,0.00800086]
[1673636327016,5.54049233,19305.0,19302.0,0.00014372]
[1673636327017,0.1,19304.0,19302.0,0.00014372]
[1673636327259,3.74172934,19303.0,19302.0,0.00014372]
[1673636327513,3.92012934,19303.0,19302.0,0.00014372]
[1673636327753,4.22012934,19303.0,19302.0,0.00014372]
[1673636328051,5.09441204,19303.0,19302.0,0.00014372]
[1673636328291,5.09441204,19303.0,19300.0,0.01]
[1673636328292,0.1,19302.0,19300.0,2.372e-05]
[1673636328534,4.62212934,19301.0,19300.0,2.372e-05]
[1673636328796,4.83292934,19301.0,19300.0,2.372e-05]
[1673636329991,4.42996462,19301.0,19300.0,2.372e-05]
[1673636330234,3.004883,19301.0,19300.0,2.372e-05]
[1673636330514,1.951676,19301.0,19300.0,2.372e-05]
[1673636330755,1.627321,19301.0,19300.0,2.372e-05]
[1673636330989,1.951676,19301.0,19300.0,2.372e-05]
[1673636331225,1.433569,19301.0,19300.0,2.372e-05]
[1673636331709,1.433569,19301.0,19299.0,0.52685547]
[1673636331710,0.073,19301.0,19299.0,0.52685547]
[1673636331975,0.073,19301.0,19300.0,0.178]
[1673636332236,0.073,19301.0,19300.0,0.384339]
[1673636332495,0.073,19301.0,19300.0,0.72818522]
[1673636332747,0.0002,19302.0,19300.0,1.07042381]
[1673636333054,0.0002,19302.0,19301.0,0.178]
[1673636333303,0.0002,19302.0,19301.0,0.484326]
[1673636333815,0.0142,19302.0,19301.0,0.63897222]
[1673636334360,0.0282,19302.0,19301.0,1.66389042]
[1673636334608,0.02412988,19302.0,19301.0,2.3352994]
[1673636334854,0.02412988,19302.0,19301.0,1.64093641]
[1673636336204,0.02412988,19302.0,19301.0,2.23871318]
[1673636336444,0.02412988,19302.0,19301.0,2.13857369]
[1673636336683,0.02412988,19302.0,19301.0,2.31663427]
[1673636336917,0.02412988,19302.0,19301.0,1.79852727]
[1673636337157,0.02412988,19302.0,19301.0,1.70932727]
[1673636337396,0.02412988,19302.0,19301.0,1.70946676]
[1673636337644,0.02412988,19302.0,19301.0,1.32256863]